fUST/lending_fUST_20250514
["ID","MTS","AMOUNT","RATE_DAILY","PERIOD"]
[360959249,1747163447513,-1410.79,0.00013972,2]
[360959250,1747163447523,-400.0,0.00013972,2]
[360959251,1747163447532,-414.36,0.00013972,2]
[360959252,1747163447542,-824.93,0.00013972,2]
[360959253,1747163447552,-1272.9,0.00013972,2]
[360959254,1747163447561,-10859.5,0.00013972,2]
[360959255,1747163447572,-400.0,0.00013972,2]
[360959256,1747163447582,-13840.35,0.00013972,2]
[360959257,1747163447592,-3091.91,0.00013972,2]
[360959258,1747163447601,-2513.8,0.00013972,2]
[360959259,1747163447611,-5100.36,0.00013972,2]
[360959260,1747163447621,-400.0,0.00013972,2]
[360959261,1747163447630,-400.0,0.00013972,2]
[360959262,1747163447640,-943.24,0.00013972,2]
[360959263,1747163447649,-423.55,0.00013972,2]
[360959264,1747163447659,-1232.15,0.00013972,2]
[360959265,1747163447668,-3367.05,0.00013972,2]
[360959266,1747163447678,-400.0,0.00013972,2]
[360959267,1747163447688,-617.97,0.00013972,2]
[360959268,1747163447698,-400.0,0.00013972,2]
[360959269,1747163447707,-400.0,0.00013972,2]
[360959270,1747163447717,-400.0,0.00013972,2]
[360959271,1747163447726,-400.0,0.00013972,2]
[360959272,1747163447736,-1166.3,0.00013972,2]
[360959273,1747163447746,-400.0,0.00013972,2]
[360959274,1747163447755,-400.0,0.00013972,2]
[360959275,1747163447765,-400.0,0.00013972,2]
[360959276,1747163447775,-564.6,0.00013972,2]
[360959277,1747163447784,-570.55,0.00013972,2]
[360959278,1747163447794,-400.0,0.00013972,2]
[360959279,1747163447804,-5504.96,0.00013972,2]
[360959280,1747163447813,-400.0,0.00013972,2]
[360959281,1747163447825,-4813.08,0.00013972,2]
[360959282,1747163447834,-550.32,0.00013972,2]
[360959283,1747163447844,-511.58,0.00013972,2]
[360959284,1747163447853,-400.0,0.00013972,2]
[360959285,1747163447864,-4925.99,0.00013972,2]
[360959286,1747163447874,-479.59,0.00013972,2]
[360959287,1747163447883,-1025.2,0.00013972,2]
[360959288,1747163447893,-18691.35,0.00013972,2]
[360959289,1747163447903,-1610.29,0.00013972,2]
[360959290,1747163447912,-636.92,0.00013972,2]
[360959291,1747163447922,-3889.29,0.00013972,2]
[360959292,1747163447932,-1415.16,0.00013972,2]
[360959293,1747163447942,-400.0,0.00013972,2]
[360959294,1747163447952,-1451.79,0.00013972,2]
[360959295,1747163447961,-151.0,0.00013972,2]
[360959296,1747163447971,-408.31,0.00013972,2]
[360959297,1747163447980,-151.0,0.00013972,2]
[360959298,1747163447990,-151.0,0.00013972,2]
[360959299,1747163448000,-151.0,0.00013972,2]
[360959300,1747163448010,-793.64,0.00013972,2]
[360959301,1747163448019,-400.0,0.00013972,2]
[360959302,1747163448028,-1186.93,0.00013972,2]
[360959303,1747163448038,-2114.08,0.00013972,2]
[360959304,1747163448048,-400.0,0.00013972,2]
[360959305,1747163448058,-400.0,0.00013972,2]
[360959306,1747163448068,-444.17,0.00013972,2]
[360959307,1747163448079,-400.0,0.00013972,2]
[360959308,1747163448088,-523.09306932,0.00013972,2]
[360959309,1747163448098,-885.63,0.00013972,2]
[360959310,1747163448107,-616.72,0.00013972,2]
[360959311,1747163448117,-634.52,0.00013972,2]
[360959312,1747163448127,-4738.78,0.00013972,2]
[360959313,1747163448137,-3404.53,0.00013972,2]
[360959314,1747163448147,-1013.48,0.00013972,2]
[360959315,1747163448157,-564.9,0.00013972,2]
[360959316,1747163448167,-4199.03,0.00013972,2]
[360959317,1747163448177,-2135.79,0.00013972,2]
[360959318,1747163448186,-1011.99,0.00013972,2]
[360959319,1747163448195,-569.89,0.00013972,2]
[360959320,1747163448205,-400.0,0.00013972,2]
[360959321,1747163448215,-151.0,0.00013972,2]
[360959322,1747163448224,-151.0,0.00013972,2]
[360959323,1747163448234,-151.0,0.00013972,2]
[360959324,1747163448244,-2568.15,0.00013972,2]
[360959325,1747163448254,-400.0,0.00013972,2]
[360959326,1747163448264,-400.0,0.00013972,2]
[360959327,1747163448278,-1075.07,0.00013972,2]
[360959328,1747163448287,-400.0,0.00013972,2]
[360959329,1747163448297,-151.0,0.00013972,2]
[360959330,1747163448306,-151.0,0.00013972,2]
[360959331,1747163448316,-151.0,0.00013972,2]
[360959332,1747163448327,-2576.74,0.00013972,2]
[360959333,1747163448336,-400.0,0.00013972,2]
[360959334,1747163448348,-6341.3,0.00013972,2]
[360959335,1747163448357,-928.05,0.00013972,2]
[360959336,1747163448367,-400.0,0.00013972,2]
[360959337,1747163448376,-1890.92,0.00013972,2]
[360959338,1747163448386,-400.0,0.00013972,2]
[360959339,1747163448395,-400.0,0.00013972,2]
[360959340,1747163448405,-400.0,0.00013972,2]
[360959341,1747163448414,-6216.69,0.00013972,2]
[360959342,1747163448424,-500.0,0.00013972,2]
[360959343,1747163448434,-1359.15,0.00013972,2]
[360959344,1747163448444,-581.5,0.00013972,2]
[360959345,1747163448454,-423.07,0.00013972,2]
[360959346,1747163448464,-400.0,0.00013972,2]
[360959347,1747163448475,-742.89,0.00013972,2]
[360959348,1747163448485,-2612.92,0.00013972,2]
[360959349,1747163448494,-837.08,0.00013972,2]
[360959350,1747163448504,-400.0,0.00013972,2]
[360959351,1747163448515,-676.87,0.00013972,2]
[360959352,1747163448525,-400.0,0.00013972,2]
[360959353,1747163448535,-400.0,0.00013972,2]
[360959354,1747163448546,-400.0,0.00013972,2]
[360959355,1747163448555,-400.0,0.00013972,2]
[360959356,1747163448565,-504.69,0.00013972,2]
[360959357,1747163448576,-1967.43,0.00013972,2]
[360959358,1747163448586,-4671.65,0.00013972,2]
[360959359,1747163448596,-628.25,0.00013972,2]
[360959360,1747163448606,-401.69,0.00013972,2]
[360959361,1747163448615,-1293.32,0.00013972,2]
[360959362,1747163448625,-2153.57,0.00013972,2]
[360959363,1747163448635,-400.0,0.00013972,2]
[360959364,1747163448646,-485.9,0.00013972,2]
[360959365,1747163448732,-1047.01,0.00013972,2]
[360959366,1747163448743,-595.07,0.00013972,2]
[360959367,1747163448753,-400.0,0.00013972,2]
[360959368,1747163448764,-957.71,0.00013972,2]
[360959369,1747163448774,-151.0,0.00013972,2]
[360959370,1747163448784,-151.0,0.00013972,2]
[360959371,1747163448795,-151.0,0.00013972,2]
[360959372,1747163448804,-400.0,0.00013972,2]
[360959373,1747163448814,-400.0,0.00013972,2]
[360959374,1747163448826,-708.0,0.00013972,2]
[360959375,1747163448836,-400.0,0.00013972,2]
[360959376,1747163448846,-1173.13,0.00013972,2]
[360959377,1747163448856,-1323.4,0.00013972,2]
[360959378,1747163448866,-1191.71,0.00013972,2]
[360959379,1747163448876,-495.76,0.00013972,2]
[360959380,1747163448886,-400.0,0.00013972,2]
[360959381,1747163448896,-787.24,0.00013972,2]
[360959382,1747163448905,-519.17,0.00013972,2]
[360959383,1747163448915,-3428.33,0.00013972,2]
[360959384,1747163448925,-400.0,0.00013972,2]
[360959385,1747163448934,-2636.8,0.00013972,2]
[360959386,1747163448944,-400.0,0.00013972,2]
[360959387,1747163448954,-494.17,0.00013972,2]
[360959388,1747163448963,-400.0,0.00013972,2]
[360959389,1747163448972,-963.0,0.00013972,2]
[360959390,1747163448982,-400.0,0.00013972,2]
[360959391,1747163448992,-3949.79,0.00013972,2]
[360959392,1747163449002,-151.0,0.00013972,2]
[360959393,1747163449011,-400.0,0.00013972,2]
[360959394,1747163449021,-151.0,0.00013972,2]
[360959395,1747163449031,-1443.59,0.00013972,2]
[360959396,1747163449041,-727.17,0.00013972,2]
[360959397,1747163449050,-151.0,0.00013972,2]
[360959398,1747163449059,-151.0,0.00013972,2]
[360959399,1747163449069,-400.0,0.00013972,2]
[360959400,1747163449078,-1488.49,0.00013972,2]
[360959401,1747163449088,-858.64,0.00013972,2]
[360959402,1747163449097,-1891.22,0.00013972,2]
[360959403,1747163449107,-151.0,0.00013972,2]
[360959404,1747163449118,-151.0,0.00013972,2]
[360959405,1747163449127,-151.0,0.00013972,2]
[360959406,1747163449137,-151.0,0.00013972,2]
[360959407,1747163449147,-1586.64,0.00013972,2]
[360959408,1747163449157,-2794.04,0.00013972,2]
[360959409,1747163449167,-400.0,0.00013972,2]
[360959410,1747163449176,-400.0,0.00013972,2]
[360959411,1747163449185,-549.39,0.00013972,2]
[360959412,1747163449195,-400.0,0.00013972,2]
[360959413,1747163449205,-582.36,0.00013972,2]
[360959414,1747163449214,-11098.42,0.00013972,2]
[360959415,1747163449224,-400.0,0.00013972,2]
[360959416,1747163449233,-7881.93,0.00013972,2]
[360959417,1747163449242,-2000.76,0.00013972,2]
[360959418,1747163449252,-533.52,0.00013972,2]
[360959419,1747163449261,-400.0,0.00013972,2]
[360959420,1747163449274,-17737.4,0.00013972,2]
[360959421,1747163449283,-1317.71,0.00013972,2]
[360959422,1747163449292,-400.0,0.00013972,2]
[360959423,1747163449303,-536.17,0.00013972,2]
[360959424,1747163449314,-198.7938082,0.00013972,2]
[360959425,1747163449323,-832.14,0.00013972,2]
[360959426,1747163449332,-400.0,0.00013972,2]
[360959427,1747163449342,-511.86237603,0.00013972,2]
[360959428,1747163449352,-400.0,0.00013972,2]
[360959429,1747163449362,-400.0,0.00013972,2]
[360959430,1747163449371,-2777.23,0.00013972,2]
[360959431,1747163449382,-500.0,0.00013973,2]
[360959432,1747163449391,-500.0,0.00013973,2]
[360959433,1747163449401,-500.0,0.00013973,2]
[360959434,1747163449410,-500.0,0.00013973,2]
[360959435,1747163449420,-500.0,0.00013973,2]
[360959436,1747163449429,-500.0,0.00013973,2]
[360959437,1747163449439,-559.75748747,0.00013973,2]
[360959438,1747163449449,-500.0,0.00013973,2]
[360959439,1747163449459,-500.0,0.00013973,2]
[360959440,1747163449468,-503.10778995,0.00013973,2]
[360959441,1747163449478,-500.0,0.00013973,2]
[360959442,1747163449487,-502.80424046,0.00013973,2]
[360959443,1747163449502,-500.0,0.00013973,2]
[360959444,1747163449511,-500.0,0.00013973,2]
[360959445,1747163449521,-500.0,0.00013973,2]
[360959446,1747163449530,-500.0,0.00013973,2]
[360959447,1747163449540,-151.0,0.00014,2]
[360959448,1747163449549,-151.0,0.00014,2]
[360959449,1747163449559,-151.0,0.000141,2]
[360959450,1747163449568,-151.0,0.000141,2]
[360959451,1747163449578,-4838.32248039,0.00014146,2]
[360959452,1747163449587,-151.0,0.000142,2]
[360959453,1747163449596,-345.431099,0.00014246,2]
[360959454,1747163449606,-345.431099,0.00014246,2]
[360959455,1747163449615,-345.431099,0.00014246,2]
[360959456,1747163449624,-345.431099,0.00014246,2]
[360959457,1747163449636,-345.431099,0.00014246,2]
[360959458,1747163449646,-345.431099,0.00014246,2]
[360959459,1747163449656,-219.405713,0.00014246,2]
[360959460,1747163449666,-219.405713,0.00014246,2]
[360959461,1747163449675,-219.405713,0.00014246,2]
[360959462,1747163449685,-219.405713,0.00014246,2]
[360959463,1747163449694,-219.405713,0.00014246,2]
[360959464,1747163449703,-219.405713,0.00014246,2]
[360959465,1747163449712,-151.0,0.00014246,2]
[360959466,1747163449722,-151.0,0.00014246,2]
[360959467,1747163449730,-151.0,0.00014246,2]
[360959468,1747163449740,-400.0,0.00014246,2]
[360959469,1747163449749,-1129.64,0.00014246,2]
[360959470,1747163449759,-400.0,0.00014246,2]
[360959471,1747163449769,-638.35,0.00014246,2]
[360959472,1747163449778,-445.96963375,0.00014246,2]
[360959473,1747163449787,-1112.99,0.00014246,2]
[360959474,1747163449797,-400.0,0.00014246,2]
[360959475,1747163449806,-217.1776934,0.00014246,2]
[360959476,1747163449815,-400.0,0.00014246,2]
[360959477,1747163449824,-400.0,0.00014246,2]
[360959478,1747163449834,-400.0,0.00014246,2]
[360959479,1747163449844,-400.0,0.00014246,2]
[360959480,1747163449854,-487.6,0.00014246,2]
[360959481,1747163449863,-400.0,0.00014246,2]
[360959482,1747163449873,-151.0,0.00014246,2]
[360959483,1747163449883,-151.0,0.00014246,2]
[360959484,1747163449893,-151.0,0.00014246,2]
[360959485,1747163449902,-400.0,0.00014246,2]
[360959486,1747163449912,-1712.73,0.00014246,2]
[360959487,1747163449921,-433.09,0.00014246,2]
[360959488,1747163449930,-400.0,0.00014246,2]
[360959489,1747163449939,-473.82,0.00014246,2]
[360959490,1747163449949,-400.0,0.00014246,2]
[360959491,1747163449958,-400.0,0.00014246,2]
[360959492,1747163449967,-400.0,0.00014246,2]
[360959493,1747163449976,-400.0,0.00014246,2]
[360959494,1747163449986,-400.0,0.00014246,2]
[360959495,1747163449995,-400.0,0.00014246,2]
[360959496,1747163450004,-400.0,0.00014246,2]
[360959497,1747163450014,-151.0,0.00014246,2]
[360959498,1747163450023,-151.0,0.00014246,2]
[360959499,1747163450032,-151.0,0.00014246,2]
[360959500,1747163450042,-400.0,0.00014246,2]
[360959501,1747163450051,-151.0,0.00014246,2]
[360959502,1747163450061,-400.0,0.00014246,2]
[360959503,1747163450070,-400.0,0.00014246,2]
[360959504,1747163450081,-400.0,0.00014246,2]
[360959505,1747163450089,-400.0,0.00014246,2]
[360959506,1747163450099,-400.0,0.00014246,2]
[360959507,1747163450109,-151.0,0.00014246,2]
[360959508,1747163450118,-400.0,0.00014246,2]
[360959509,1747163450128,-151.0,0.00014246,2]
[360959510,1747163450137,-461.32,0.00014246,2]
[360959511,1747163450146,-656.28,0.00014246,2]
[360959512,1747163450156,-400.0,0.00014246,2]
[360959513,1747163450166,-400.0,0.00014246,2]
[360959514,1747163450175,-400.0,0.00014246,2]
[360959515,1747163450184,-400.0,0.00014246,2]
[360959516,1747163450193,-443.79,0.00014246,2]
[360959517,1747163450202,-151.0,0.00014246,2]
[360959518,1747163450212,-242.6987,0.00014246,2]
[360959519,1747163450221,-400.0,0.00014246,2]
[360959520,1747163450230,-151.0,0.00014246,2]
[360959521,1747163450239,-151.0,0.00014246,2]
[360959522,1747163450248,-400.0,0.00014246,2]
[360959523,1747163450257,-509.19,0.00014246,2]
[360959524,1747163450266,-400.0,0.00014246,2]
[360959525,1747163450280,-400.0,0.00014246,2]
[360959526,1747163450290,-622.9,0.00014246,2]
[360959527,1747163450300,-358.284771,0.00014246,2]
[360959528,1747163450309,-358.284771,0.00014246,2]
[360959529,1747163450320,-400.0,0.00014246,2]
[360959530,1747163450332,-358.284771,0.00014246,2]
[360959531,1747163450342,-358.284771,0.00014246,2]
[360959532,1747163450352,-678.63,0.00014246,2]
[360959533,1747163450363,-400.0,0.00014246,2]
[360959534,1747163450372,-400.08,0.00014246,2]
[360959535,1747163450382,-322.465783,0.00014246,2]
[360959536,1747163450391,-322.465783,0.00014246,2]
[360959537,1747163450400,-322.465783,0.00014246,2]
[360959538,1747163450409,-836.03,0.00014246,2]
[360959539,1747163450418,-322.465783,0.00014246,2]
[360959540,1747163450428,-322.465783,0.00014246,2]
[360959541,1747163450438,-322.465783,0.00014246,2]
[360959542,1747163450447,-400.0,0.00014246,2]
[360959543,1747163450458,-469.11,0.00014246,2]
[360959544,1747163450468,-400.0,0.00014246,2]
[360959545,1747163450478,-400.0,0.00014246,2]
[360959546,1747163450487,-1941.75,0.00014246,2]
[360959547,1747163450498,-151.0,0.00014246,2]
[360959548,1747163450507,-400.0,0.00014246,2]
[360959549,1747163450516,-492.09,0.00014246,2]
[360959550,1747163450525,-400.0,0.00014246,2]
[360959551,1747163450535,-400.0,0.00014246,2]
[360959552,1747163450544,-604.34,0.00014246,2]
[360959553,1747163450553,-400.0,0.00014246,2]
[360959554,1747163450563,-400.0,0.00014246,2]
[360959555,1747163450573,-316.89,0.00014246,2]
[360959556,1747163450584,-743.05,0.00014246,2]
[360959557,1747163450593,-959.27,0.00014246,2]
[360959558,1747163450602,-400.0,0.00014246,2]
[360959559,1747163450611,-400.0,0.00014246,2]
[360959560,1747163450621,-912.38,0.00014246,2]
[360959561,1747163450630,-1015.98,0.00014246,2]
[360959562,1747163450639,-1522.25,0.00014246,2]
[360959563,1747163450649,-400.0,0.00014246,2]
[360959564,1747163450658,-400.0,0.00014246,2]
[360959565,1747163450668,-400.0,0.00014246,2]
[360959566,1747163450677,-433.62,0.00014246,2]
[360959567,1747163450687,-400.0,0.00014246,2]
[360959568,1747163450697,-400.0,0.00014246,2]
[360959569,1747163450706,-400.0,0.00014246,2]
[360959570,1747163450715,-1145.27854563,0.00014246,2]
[360959571,1747163450725,-689.25,0.00014246,2]
[360959572,1747163450734,-518.68,0.00014246,2]
[360959573,1747163450744,-1615.93,0.00014246,2]
[360959574,1747163450753,-151.0,0.00014246,2]
[360959575,1747163450763,-151.0,0.00014246,2]
[360959576,1747163450773,-400.0,0.00014246,2]
[360959577,1747163450783,-221.046878,0.00014246,2]
[360959578,1747163450794,-2181.47,0.00014246,2]
[360959579,1747163450803,-400.0,0.00014246,2]
[360959580,1747163450813,-400.0,0.00014246,2]
[360959581,1747163450822,-449.99,0.00014246,2]
[360959582,1747163450834,-495.98,0.00014246,2]
[360959583,1747163450844,-887.12,0.00014246,2]
[360959584,1747163450853,-400.0,0.00014246,2]
[360959585,1747163450862,-400.0,0.00014246,2]
[360959586,1747163450872,-1045.98,0.00014246,2]
[360959587,1747163450882,-696.8,0.00014246,2]
[360959588,1747163450891,-705.19,0.00014246,2]
[360959589,1747163450901,-479.18,0.00014246,2]
[360959590,1747163450910,-400.0,0.00014246,2]
[360959591,1747163450920,-400.0,0.00014246,2]
[360959592,1747163450929,-400.0,0.00014246,2]
[360959593,1747163450939,-521.50128068,0.00014246,2]
[360959594,1747163450948,-444.11,0.00014246,2]
[360959595,1747163450957,-400.0,0.00014246,2]
[360959596,1747163450967,-400.0,0.00014246,2]
[360959597,1747163450976,-755.42,0.00014246,2]
[360959598,1747163450986,-591.77,0.00014246,2]
[360959599,1747163450995,-557.84,0.00014246,2]
[360959600,1747163451004,-1109.74,0.00014246,2]
[360959601,1747163451013,-1060.62,0.00014246,2]
[360959602,1747163451023,-635.56,0.00014246,2]
[360959603,1747163451032,-424.43,0.00014246,2]
[360959604,1747163451041,-503.45,0.00014246,2]
[360959605,1747163451052,-495.07,0.00014246,2]
[360959606,1747163451062,-794.03,0.00014246,2]
[360959607,1747163451072,-967.8,0.00014246,2]
[360959608,1747163451083,-424.6196243,0.00014246,2]
[360959609,1747163451093,-503.63,0.00014246,2]
[360959610,1747163451103,-400.0,0.00014246,2]
[360959611,1747163451112,-151.0,0.00014246,2]
[360959612,1747163451123,-246.385038,0.00014246,2]
[360959613,1747163451132,-400.0,0.00014246,2]
[360959614,1747163451142,-400.0,0.00014246,2]
[360959615,1747163451151,-400.0,0.00014246,2]
[360959616,1747163451161,-654.87,0.00014246,2]
[360959617,1747163451171,-495.54,0.00014246,2]
[360959618,1747163451180,-507.83,0.00014246,2]
[360959619,1747163451190,-400.0,0.00014246,2]
[360959620,1747163451200,-400.0,0.00014246,2]
[360959621,1747163451209,-400.0,0.00014246,2]
[360959622,1747163451219,-738.84,0.00014246,2]
[360959623,1747163451230,-400.0,0.00014246,2]
[360959624,1747163451240,-517.79,0.00014246,2]
[360959625,1747163451250,-400.0,0.00014246,2]
[360959626,1747163451259,-400.0,0.00014246,2]
[360959627,1747163451270,-400.0,0.00014246,2]
[360959628,1747163451281,-413.92,0.00014246,2]
[360959629,1747163451291,-400.0,0.00014246,2]
[360959630,1747163451301,-462.41,0.00014246,2]
[360959631,1747163451311,-400.0,0.00014246,2]
[360959632,1747163451320,-353.1782572,0.00014246,2]
[360959633,1747163451331,-400.0,0.00014246,2]
[360959634,1747163451340,-525.86,0.00014246,2]
[360959635,1747163451351,-1468.38,0.00014246,2]
[360959636,1747163451361,-515.1,0.00014246,2]
[360959637,1747163451371,-621.34,0.00014246,2]
[360959638,1747163451380,-400.0,0.00014246,2]
[360959639,1747163451390,-400.0,0.00014246,2]
[360959640,1747163451401,-900.06,0.00014246,2]
[360959641,1747163451411,-400.0,0.00014246,2]
[360959642,1747163451421,-1050.43,0.00014246,2]
[360959643,1747163451431,-1087.38,0.00014246,2]
[360959644,1747163451443,-773.42,0.00014246,2]
[360959645,1747163451453,-400.0,0.00014246,2]
[360959646,1747163451463,-1489.52,0.00014246,2]
[360959647,1747163451473,-556.02,0.00014246,2]
[360959648,1747163451484,-151.0,0.00014246,2]
[360959649,1747163451494,-151.0,0.00014246,2]
[360959650,1747163451505,-151.0,0.00014246,2]
[360959651,1747163451515,-400.0,0.00014246,2]
[360959652,1747163451525,-876.0,0.00014246,2]
[360959653,1747163451535,-400.0,0.00014246,2]
[360959654,1747163451545,-1335.22,0.00014246,2]
[360959655,1747163451554,-400.0,0.00014246,2]
[360959656,1747163451565,-400.0,0.00014246,2]
[360959657,1747163451576,-1127.63,0.00014246,2]
[360959658,1747163451588,-468.37,0.00014246,2]
[360959659,1747163451599,-851.78,0.00014246,2]
[360959660,1747163451610,-400.0,0.00014246,2]
[360959661,1747163451620,-251.42,0.00014246,2]
[360959662,1747163451630,-400.0,0.00014246,2]
[360959663,1747163451640,-400.0,0.00014246,2]
[360959664,1747163451650,-443.57,0.00014246,2]
[360959665,1747163451661,-598.0,0.00014246,2]
[360959666,1747163451671,-194.198385,0.00014246,2]
[360959667,1747163451682,-151.0,0.00014246,2]
[360959668,1747163451693,-1853.3,0.00014246,2]
[360959669,1747163451703,-611.04,0.00014246,2]
[360959670,1747163451714,-400.0,0.00014246,2]
[360959671,1747163451724,-400.0,0.00014246,2]
[360959672,1747163451734,-400.0,0.00014246,2]
[360959673,1747163451744,-500.0,0.00014246,2]
[360959674,1747163451755,-151.0,0.00014246,2]
[360959675,1747163451766,-151.0,0.00014246,2]
[360959676,1747163451776,-151.0,0.00014246,2]
[360959677,1747163451787,-400.0,0.00014246,2]
[360959678,1747163451797,-539.51,0.00014246,2]
[360959679,1747163451807,-431.84,0.00014246,2]
[360959680,1747163451817,-913.94,0.00014246,2]
[360959681,1747163451828,-960.23,0.00014246,2]
[360959682,1747163451838,-690.21,0.00014246,2]
[360959683,1747163451848,-151.0,0.00014246,2]
[360959684,1747163451858,-151.0,0.00014246,2]
[360959685,1747163451869,-400.0,0.00014246,2]
[360959686,1747163451879,-151.0,0.00014246,2]
[360959687,1747163451889,-400.0,0.00014246,2]
[360959688,1747163451900,-3210.06,0.00014246,2]
[360959689,1747163451910,-433.99,0.00014246,2]
[360959690,1747163451920,-1175.15,0.00014246,2]
[360959691,1747163451930,-400.0,0.00014246,2]
[360959692,1747163451940,-562.23,0.00014246,2]
[360959693,1747163451950,-1992.05,0.00014246,2]
[360959694,1747163451961,-400.0,0.00014246,2]
[360959695,1747163451970,-1264.508187,0.00014246,2]
[360959696,1747163451980,-1264.508187,0.00014246,2]
[360959697,1747163451991,-1264.508187,0.00014246,2]
[360959698,1747163452001,-462.41,0.00014246,2]
[360959699,1747163452011,-151.0,0.00014246,2]
[360959700,1747163452021,-155.196221,0.00014246,2]
[360959701,1747163452031,-1264.508187,0.00014246,2]
[360959702,1747163452041,-1264.508187,0.00014246,2]
[360959703,1747163452051,-1264.508187,0.00014246,2]
[360959704,1747163452062,-1070.01,0.00014246,2]
[360959705,1747163452073,-400.0,0.00014246,2]
[360959706,1747163452084,-637.72,0.00014246,2]
[360959707,1747163452094,-400.0,0.00014246,2]
[360959708,1747163452104,-1961.25,0.00014246,2]
[360959709,1747163452115,-400.0,0.00014246,2]
[360959710,1747163452125,-400.0,0.00014246,2]
[360959711,1747163452135,-400.0,0.00014246,2]
[360959712,1747163452146,-400.0,0.00014246,2]
[360959713,1747163452157,-484.34,0.00014246,2]
[360959714,1747163452168,-400.0,0.00014246,2]
[360959715,1747163452178,-400.0,0.00014246,2]
[360959716,1747163452190,-1393.04,0.00014246,2]
[360959717,1747163452201,-400.0,0.00014246,2]
[360959718,1747163452211,-604.84,0.00014246,2]
[360959719,1747163452222,-199.02007815,0.00014246,2]
[360959720,1747163452232,-1545.27,0.00014246,2]
[360959721,1747163452242,-400.0,0.00014246,2]
[360959722,1747163452253,-460.53,0.00014246,2]
[360959723,1747163452263,-400.0,0.00014246,2]
[360959724,1747163452279,-520.75,0.00014246,2]
[360959725,1747163452290,-400.0,0.00014246,2]
[360959726,1747163452301,-2436.04,0.00014246,2]
[360959727,1747163452312,-460.01,0.00014246,2]
[360959728,1747163452322,-400.0,0.00014246,2]
[360959729,1747163452333,-400.0,0.00014246,2]
[360959730,1747163452344,-400.0,0.00014246,2]
[360959731,1747163452354,-400.0,0.00014246,2]
[360959732,1747163452364,-400.0,0.00014246,2]
[360959733,1747163452374,-400.0,0.00014246,2]
[360959734,1747163452384,-400.0,0.00014246,2]
[360959735,1747163452393,-981.95,0.00014246,2]
[360959736,1747163452404,-1422.81,0.00014246,2]
[360959737,1747163452414,-400.0,0.00014246,2]
[360959738,1747163452424,-409.86,0.00014246,2]
[360959739,1747163452435,-490.56,0.00014246,2]
[360959740,1747163452445,-400.0,0.00014246,2]
[360959741,1747163452455,-914.31,0.00014246,2]
[360959742,1747163452465,-400.0,0.00014246,2]
[360959743,1747163452475,-532.14,0.00014246,2]
[360959744,1747163452486,-3472.62,0.00014246,2]
[360959745,1747163452496,-2931.2,0.00014246,2]
[360959746,1747163452505,-899.54,0.00014246,2]
[360959747,1747163452515,-255.20820215,0.00014246,2]
[360959748,1747163452526,-1823.91,0.00014246,2]